bitfinex/quotes_SOLUSD_20251007
["timestamp","ask_amount","ask_price","bid_price","bid_amount"]
[1759849096603,7.57998489,225.56,225.51,4.43438507]
[1759849096806,7.57998489,225.52,225.46,11.08822809]
[1759849097005,7.57998489,225.52,225.47,31.88]
[1759849097185,0.66,225.51,225.47,31.88]
[1759849097511,7.57998489,225.49,225.47,31.88]
[1759849097807,0.66,225.52,225.47,31.88]
[1759849098111,8.23998489,225.52,225.47,36.31517265]
[1759849098407,0.66,225.51,225.47,36.31517265]
[1759849098602,8.23998489,225.51,225.47,36.31517265]
[1759849098903,0.66,225.5,225.47,36.31517265]
[1759849099084,7.57998489,225.48,225.47,31.88]
[1759849099290,8.23998489,225.48,225.47,31.88]
[1759849099602,12.67496803,225.48,225.47,31.88]
[1759849099801,12.67496803,225.48,225.43,34.54]
[1759849099993,0.66,225.47,225.44,31.88]
[1759849100307,4.43498314,225.48,225.44,31.88]
[1759849100308,7.57998489,225.45,225.44,31.88]
[1759849100491,8.23998489,225.45,225.44,31.88]
[1759849100889,0.66,225.45,225.43,34.54]
[1759849101102,0.66,225.44,225.43,34.54]
[1759849101288,8.23998489,225.44,225.43,34.54]
[1759849102022,12.67575493,225.44,225.43,66.42]
[1759849102182,0.66,225.44,225.43,66.42]
[1759849102384,8.23998489,225.44,225.43,66.42]
[1759849102992,12.67575493,225.44,225.43,66.42]
[1759849103508,8.23998489,225.44,225.43,66.42]
[1759849103806,7.57998489,225.44,225.43,66.42]
[1759849103993,0.66,225.47,225.43,70.85590622]
[1759849104222,8.23998489,225.47,225.43,66.42]
[1759849104406,7.57998489,225.45,225.43,66.42]
[1759849104608,8.23998489,225.44,225.43,66.42]
[1759849105111,8.23998489,225.44,225.43,34.54]
[1759849105314,8.23998489,225.44,225.43,66.42]
[1759849106487,12.67575493,225.44,225.43,66.42]
[1759849107087,10.23681014,225.44,225.43,66.42]
[1759849107305,10.23681014,225.44,225.43,34.54]
[1759849107587,10.23681014,225.44,225.43,66.42]
[1759849108207,31.03681014,225.44,225.43,66.42]
[1759849109510,31.03681014,225.44,225.43,34.54]
[1759849109716,31.03681014,225.44,225.43,66.42]
[1759849110028,21.11328535,225.44,225.43,34.54]
[1759849110242,53.00271047,225.44,225.43,34.56]
[1759849110414,31.67647521,225.42,225.41,0.2]
[1759849110607,36.81751531,225.42,225.41,34.76]
[1759849110807,37.49751531,225.42,225.41,34.76]
[1759849111106,32.35647521,225.42,225.41,34.76]
[1759849111319,0.68,225.42,225.41,34.76]
[1759849111506,0.68,225.42,225.41,66.64]
[1759849111830,5.8210401,225.42,225.41,66.64]
[1759849112213,10.2572037,225.42,225.41,66.64]
[1759849113714,6.74861732,225.48,225.41,66.64]
[1759849113919,0.68,225.49,225.41,66.64]
[1759849113920,5.1410401,225.47,225.41,71.07631864]
[1759849114215,5.1410401,225.45,225.41,66.64]
[1759849114441,5.1410401,225.45,225.41,71.07633317]
[1759849115634,4.43498314,225.48,225.41,34.76]
[1759849115939,5.1410401,225.46,225.42,31.88]
[1759849116323,5.1410401,225.45,225.42,31.88]
[1759849117036,5.1410401,225.46,225.42,31.88]
[1759849117248,4.43480422,225.49,225.42,31.88]
[1759849117249,5.1410401,225.47,225.42,31.88]
[1759849117708,5.1410401,225.47,225.42,36.31603035]
[1759849118014,5.1410401,225.46,225.42,36.31603035]
[1759849118214,5.1410401,225.45,225.42,31.88]
[1759849118409,5.1410401,225.46,225.42,31.88]
[1759849119136,5.1410401,225.46,225.42,36.31614799]
[1759849119833,0.68,225.49,225.42,36.31614799]
[1759849120135,5.1410401,225.46,225.42,36.31614799]
[1759849122122,2.31310098,225.51,225.42,47.406557]
[1759849122334,5.1410401,225.52,225.42,47.406557]
[1759849122731,5.1410401,225.49,225.42,47.406557]
[1759849123129,1.93709005,225.49,225.42,47.406557]
[1759849123337,1.93709005,225.48,225.42,47.406557]
[1759849124942,1.93709005,225.49,225.42,47.406557]
[1759849125141,1.93709005,225.5,225.42,47.406557]
[1759849125525,1.93709005,225.49,225.42,47.406557]
[1759849125733,1.93709005,225.48,225.42,47.406557]
[1759849125934,5.14420582,225.52,225.42,47.406557]
[1759849126131,1.93709005,225.48,225.42,47.406557]
[1759849126323,5.14440544,225.51,225.42,47.406557]
[1759849126525,1.93709005,225.49,225.42,47.406557]
[1759849128925,1.93709005,225.48,225.42,47.406557]
[1759849130241,1.93709005,225.44,225.43,31.88]
[1759849133165,0.71,225.49,225.43,31.88]
[1759849133343,20.8,225.5,225.43,36.31589707]
[1759849133544,1.93709005,225.51,225.43,36.31589707]
[1759849133752,1.93709005,225.5,225.43,36.31589707]
[1759849134153,1.93709005,225.51,225.43,36.31589707]
[1759849134766,4.43399991,225.53,225.43,47.40581411]
[1759849134942,6.37108996,225.53,225.43,47.40581411]
[1759849135342,1.93709005,225.52,225.43,47.40581411]
[1759849136073,4.43420136,225.52,225.43,47.40581411]
[1759849136266,1.93709005,225.51,225.43,47.40581411]
[1759849138193,1.93709005,225.48,225.43,36.31589707]
[1759849138354,1.93709005,225.46,225.44,31.86]
[1759849138562,1.93709005,225.47,225.44,31.86]
[1759849139654,1.93709005,225.47,225.45,34.56]
[1759849139958,2.59709005,225.46,225.45,34.56]
[1759849141072,7.03246661,225.46,225.45,34.56]
[1759849141449,31.67647521,225.45,225.44,31.86]
[1759849141649,20.8,225.42,225.41,0.2]
[1759849141951,15.31283561,225.41,225.4,0.2]
[1759849142170,25.65828586,225.41,225.4,0.2]
[1759849142366,17.90992566,225.41,225.4,0.2]
[1759849142751,17.90992566,225.41,225.4,5.92]
[1759849142951,23.39709005,225.41,225.4,5.92]
[1759849143173,22.73709005,225.41,225.4,5.92]
[1759849143387,23.39709005,225.41,225.4,5.92]
[1759849144191,7.03345045,225.41,225.4,5.92]
[1759849144481,2.59709005,225.41,225.4,5.92]
[1759849145062,7.03345045,225.41,225.4,5.92]
[1759849145377,27.83345045,225.41,225.4,5.92]
[1759849145571,27.83345045,225.41,225.4,0.2]
[1759849145773,27.83345045,225.41,225.4,30.5]
[1759849147668,27.83345045,225.41,225.4,65.06]
[1759849148569,27.17345045,225.41,225.4,65.06]
[1759849148774,20.8,225.41,225.4,65.06]
[1759849148972,22.73709005,225.41,225.4,65.06]
[1759849149176,27.17345045,225.41,225.4,65.06]
[1759849149572,27.83345045,225.41,225.4,65.06]
[1759849150693,7.03345045,225.41,225.4,65.06]
[1759849150891,7.03345045,225.41,225.4,66.62]
[1759849151992,17.90992566,225.41,225.4,66.62]
[1759849152571,25.65828586,225.41,225.4,34.76]
[1759849152772,39.72217623,225.41,225.4,34.58]
[1759849152998,10.87647521,225.37,225.36,0.1]
[1759849153294,12.81356526,225.37,225.36,0.1]
[1759849153499,13.47356526,225.37,225.36,0.1]
[1759849154096,11.53647521,225.37,225.36,12.4]
[1759849154315,13.47356526,225.37,225.36,12.4]
[1759849154674,17.91071306,225.37,225.36,12.4]
[1759849155305,17.91071306,225.37,225.36,0.1]
[1759849155481,17.91071306,225.37,225.36,6.26]
[1759849155681,17.91071306,225.37,225.36,0.1]
[1759849155882,31.04781089,225.37,225.36,13.38]
[1759849156087,31.67647521,225.34,225.33,0.1]
[1759849156296,33.61356526,225.34,225.33,0.1]
[1759849156490,34.27356526,225.34,225.33,0.1]
[1759849156690,38.71130378,225.34,225.33,0.1]
[1759849156889,36.77421373,225.34,225.33,0.1]
[1759849157202,38.71130378,225.34,225.33,5.42]
[1759849157794,38.71130378,225.34,225.33,40.0]
[1759849159495,38.71130378,225.34,225.33,66.54]
[1759849160288,25.23773852,225.34,225.33,66.54]
[1759849160617,27.17482857,225.34,225.33,66.54]
[1759849161202,25.23773852,225.34,225.33,66.54]
[1759849161391,27.83482857,225.34,225.33,66.54]
[1759849162895,38.71130378,225.34,225.33,66.54]
[1759849163609,25.89773852,225.34,225.33,66.54]
[1759849163817,25.23773852,225.34,225.33,66.54]
[1759849163990,27.17482857,225.34,225.33,66.54]
[1759849164908,25.23773852,225.34,225.33,66.54]
[1759849165218,38.71130378,225.34,225.33,34.68]
[1759849165404,38.71130378,225.34,225.33,66.54]
[1759849165720,52.12047153,225.34,225.33,34.58]
[1759849166014,52.12047153,225.34,225.31,0.2]
[1759849166015,10.87647521,225.29,225.28,34.58]
[1759849166190,21.22192546,225.29,225.28,34.58]
[1759849166591,13.47356526,225.29,225.28,34.58]
[1759849166808,21.22192546,225.29,225.28,34.58]
[1759849167015,21.22192546,225.29,225.28,66.44]
[1759849167216,24.86358922,225.29,225.28,66.44]
[1759849167416,13.46356526,225.29,225.28,66.44]
[1759849168223,21.21192546,225.29,225.28,66.44]
[1759849168624,12.81356526,225.29,225.28,66.44]
[1759849169209,13.90970938,225.29,225.28,66.44]
[1759849169604,18.3484328,225.29,225.28,66.44]
[1759849170310,15.31519863,225.29,225.28,66.44]
[1759849170814,18.3484328,225.29,225.28,66.44]
[1759849171699,18.3484328,225.29,225.28,34.58]
[1759849172018,18.3484328,225.29,225.28,66.44]
[1759849172205,15.31519863,225.29,225.28,66.44]
[1759849172398,18.3484328,225.29,225.28,66.44]
[1759849172912,15.31519863,225.29,225.28,66.44]
[1759849173103,22.03166697,225.29,225.27,0.1]
[1759849173304,15.96519863,225.29,225.28,31.86]
[1759849173601,29.29231264,225.29,225.27,0.1]
[1759849173797,29.29231264,225.29,225.26,34.6]
[1759849173798,31.67647521,225.27,225.26,34.6]
[1759849174005,32.32647521,225.27,225.26,34.6]
[1759849174415,48.68741545,225.27,225.26,34.6]
[1759849174799,48.68741545,225.27,225.26,66.46]
[1759849175005,34.70970938,225.27,225.26,66.46]
[1759849175525,39.14882688,225.27,225.26,66.46]
[1759849175698,28.27235167,225.27,225.26,66.46]
[1759849176100,7.47235167,225.27,225.26,66.46]
[1759849176725,28.27235167,225.27,225.26,66.46]
[1759849177501,25.2391175,225.27,225.26,66.46]
[1759849177724,28.27235167,225.27,225.26,66.46]
[1759849179440,10.87647521,225.32,225.26,66.66]
[1759849179611,3.03323417,225.28,225.26,66.66]
[1759849179809,3.03323417,225.28,225.27,0.2]
[1759849180220,3.03323417,225.28,225.26,66.46]
[1759849180529,3.03323417,225.27,225.26,66.46]
[1759849180918,31.67647521,225.32,225.26,66.46]
[1759849181217,3.03323417,225.28,225.27,31.86]
[1759849182714,3.03323417,225.28,225.27,32.06]
[1759849182923,3.03323417,225.3,225.27,32.06]
[1759849183124,3.03323417,225.3,225.27,31.86]
[1759849183340,3.03323417,225.28,225.27,31.86]
[1759849184232,4.43839829,225.31,225.27,31.86]
[1759849184435,3.03323417,225.28,225.27,31.86]
[1759849184634,3.03323417,225.28,225.26,34.6]
[1759849184831,3.69323417,225.27,225.26,34.6]
[1759849185030,3.69323417,225.27,225.26,66.46]
[1759849186121,8.13235167,225.27,225.26,66.46]
[1759849187222,4.4391175,225.27,225.26,66.46]
[1759849187418,4.43813243,225.32,225.26,66.66]
[1759849187625,2.31482143,225.34,225.26,71.09914164]
[1759849187626,3.03323417,225.3,225.26,71.09914164]
[1759849187838,3.03323417,225.3,225.27,0.2]
[1759849188039,3.03323417,225.3,225.28,31.84]
[1759849188340,3.03323417,225.29,225.28,31.84]
[1759849188939,3.03323417,225.29,225.26,34.6]
[1759849189116,3.03323417,225.28,225.27,31.84]
[1759849192638,3.03323417,225.28,225.26,34.6]
[1759849192639,8.13215462,225.28,225.26,34.6]
[1759849192942,14.56970938,225.27,225.26,34.6]
[1759849193237,11.53647521,225.27,225.26,34.6]
[1759849193414,20.8,225.27,225.26,66.44]
[1759849193619,23.83323417,225.27,225.26,66.44]
[1759849193836,24.49323417,225.27,225.26,66.44]
[1759849194039,4.43813243,225.32,225.26,66.64]
[1759849194226,3.03323417,225.28,225.26,66.64]
[1759849194652,3.03323417,225.28,225.26,66.44]
[1759849195278,2.97770401,225.32,225.26,66.64]
[1759849195452,3.03323417,225.28,225.26,66.44]
[1759849195649,32.55499802,225.33,225.26,66.44]
[1759849195842,3.03323417,225.29,225.26,66.44]
[1759849196165,4.43832599,225.32,225.26,66.44]
[1759849196166,3.03323417,225.28,225.26,66.44]
[1759849196545,16.19365707,225.32,225.26,66.44]
[1759849196763,3.03323417,225.28,225.26,66.44]
[1759849197873,3.74323417,225.27,225.26,34.6]
[1759849198168,3.03323417,225.27,225.26,66.44]
[1759849198345,10.87647521,225.31,225.26,66.44]
[1759849198549,3.03323417,225.27,225.26,66.44]
[1759849199269,3.03323417,225.27,225.26,34.6]
[1759849199450,3.03323417,225.27,225.26,66.44]
[1759849199978,5.14832392,225.32,225.26,66.44]
[1759849200179,7.4625676,225.34,225.26,70.87926858]
[1759849200479,16.23829314,225.4,225.27,0.2]
[1759849200654,3.02411082,225.43,225.3,4.4385264]
[1759849200852,4.4361636,225.42,225.31,32.04]
[1759849201071,4.4361636,225.42,225.32,0.2]
[1759849201072,2.98275728,225.42,225.32,0.2]
[1759849201274,2.98275728,225.42,225.33,52.64]
[1759849201275,3.03323417,225.42,225.33,52.64]
[1759849201576,0.2,225.51,225.37,20.8]
[1759849201577,0.91,225.51,225.37,20.8]
[1759849201755,0.2,225.51,225.39,10.87647521]
[1759849201949,3.03323417,225.5,225.4,32.04]
[1759849202151,3.03323417,225.47,225.41,0.2]
[1759849202348,0.71,225.48,225.42,31.84]
[1759849202549,3.03323417,225.43,225.38,0.2]
[1759849202750,0.71,225.43,225.39,31.84]
[1759849203087,7.59833848,225.4,225.36,0.2]
[1759849203394,7.59833848,225.38,225.34,0.2]
[1759849203562,7.59833848,225.36,225.31,0.2]
[1759849203887,20.8,225.43,225.32,32.02]
[1759849204055,0.71,225.45,225.33,0.2]
[1759849204376,10.87647521,225.48,225.36,20.8]
[1759849204584,7.59833848,225.37,225.31,0.2]
[1759849204882,10.87647521,225.4,225.28,0.2]
[1759849205094,7.59833848,225.35,225.29,31.82]
[1759849205386,7.59833848,225.34,225.28,0.2]
[1759849205571,0.71,225.35,225.29,31.82]
[1759849205758,7.59833848,225.31,225.29,31.82]
[1759849205959,0.71,225.35,225.26,39.03922917]
[1759849206182,7.59833848,225.34,225.27,31.82]
[1759849206477,7.59833848,225.33,225.26,15.53751559]
[1759849206689,0.71,225.32,225.27,66.4]
[1759849206888,7.59833848,225.28,225.27,66.4]
[1759849207658,7.59833848,225.28,225.27,34.58]
[1759849207880,16.24415294,225.31,225.27,34.58]
[1759849207881,15.53415294,225.31,225.27,66.4]
[1759849208059,15.53415294,225.31,225.27,34.58]
[1759849208060,8.30833848,225.28,225.27,34.58]
[1759849208265,8.30833848,225.28,225.27,66.4]
[1759849208575,19.18481369,225.28,225.27,66.4]
[1759849208759,11.58647521,225.28,225.27,66.4]
[1759849208962,7.59833848,225.28,225.27,66.4]
[1759849209173,20.8,225.32,225.27,66.4]
[1759849209382,0.71,225.32,225.27,66.4]
[1759849209577,7.59833848,225.3,225.27,66.4]
[1759849209889,0.71,225.31,225.27,66.4]
[1759849209890,7.59833848,225.29,225.27,66.4]
[1759849210099,7.59833848,225.28,225.27,66.4]
[1759849210289,7.59833848,225.28,225.27,34.58]
[1759849210492,11.58647521,225.32,225.27,66.44]
[1759849210803,7.59833848,225.28,225.27,66.44]
[1759849210987,8.30833848,225.28,225.27,66.44]
[1759849211301,7.59833848,225.28,225.27,66.44]
[1759849211472,7.59833848,225.29,225.27,66.44]
[1759849211876,10.87647521,225.38,225.28,0.2]
[1759849212083,7.59833848,225.34,225.29,31.86]
[1759849212602,5.14621504,225.42,225.3,0.2]
[1759849212773,7.59833848,225.4,225.3,0.2]
[1759849212977,7.59833848,225.39,225.33,4.43793547]
[1759849213177,7.59833848,225.39,225.34,31.96]
[1759849213372,0.71,225.42,225.34,31.96]
[1759849213573,7.59833848,225.39,225.34,31.96]
[1759849213794,7.59833848,225.4,225.35,31.94]
[1759849213995,0.71,225.42,225.35,31.94]
[1759849214201,7.59833848,225.4,225.35,31.94]
[1759849214403,7.59833848,225.42,225.35,32.14]
[1759849214700,0.71,225.44,225.35,32.14]
[1759849214906,7.59833848,225.42,225.36,4.43734469]
[1759849215087,7.59833848,225.41,225.35,36.37748628]
[1759849215403,7.59833848,225.39,225.35,31.94]
[1759849215781,7.59833848,225.39,225.35,36.37750258]
[1759849215981,7.59833848,225.4,225.35,36.57750258]
[1759849216303,7.59833848,225.41,225.35,36.57750258]
[1759849216504,7.59833848,225.4,225.35,31.94]
[1759849217203,4.43599233,225.43,225.35,31.94]
[1759849217502,7.59833848,225.4,225.35,32.14]
[1759849217707,7.59833848,225.4,225.35,36.37748924]
[1759849218121,7.59833848,225.4,225.35,31.94]
[1759849218317,7.59833848,225.39,225.33,4.43775345]
[1759849218487,7.59833848,225.39,225.34,31.92]
[1759849218987,7.59833848,225.4,225.34,32.12]
[1759849219710,5.1459806,225.43,225.35,4.4375416]
[1759849219894,7.59833848,225.4,225.35,4.4375416]
[1759849220290,5.14601228,225.43,225.35,4.4375416]
[1759849220493,7.59833848,225.4,225.35,4.4375416]
[1759849220902,0.66,225.46,225.36,0.2]
[1759849221206,7.59833848,225.44,225.37,31.92]
[1759849221409,7.59833848,225.4,225.35,4.4375416]
[1759849221711,7.59833848,225.39,225.38,31.92]
[1759849222381,10.87647521,225.46,225.38,31.92]
[1759849222382,0.66,225.45,225.38,31.92]
[1759849222582,7.59833848,225.45,225.38,31.92]
[1759849222810,0.2,225.51,225.39,24.37647521]
[1759849223188,8.25833848,225.5,225.4,0.2]
[1759849223386,7.59833848,225.43,225.36,4.63721911]
[1759849223604,7.59833848,225.43,225.37,31.94]
[1759849223809,7.59833848,225.43,225.38,4.43695092]
[1759849223991,7.59833848,225.45,225.39,0.2]
[1759849224310,0.2,225.51,225.41,20.8]
[1759849224529,0.2,225.51,225.42,32.16]
[1759849224730,0.2,225.51,225.45,20.8]
[1759849224905,0.2,225.51,225.46,31.98]
[1759849225108,0.2,225.51,225.47,31.98]
[1759849225304,5.0945898,225.5,225.48,34.58]
[1759849225508,8.25833848,225.49,225.48,66.56]
[1759849225812,4.63439473,225.51,225.48,66.56]
[1759849225813,0.2,225.51,225.48,66.56]
[1759849226139,0.2,225.51,225.49,0.2]
[1759849226305,0.2,225.51,225.5,21.0]
[1759849226501,0.2,225.51,225.48,70.99492263]
[1759849226730,0.2,225.51,225.48,34.58]
[1759849226914,0.2,225.51,225.49,31.98]
[1759849227403,8.30833848,225.5,225.48,34.58]
[1759849227625,0.71,225.49,225.38,4.43695092]
[1759849227825,7.59833848,225.46,225.4,15.5279503]
[1759849228162,0.2,225.51,225.42,20.8]
[1759849228425,7.59833848,225.49,225.43,32.0]
[1759849228627,0.2,225.51,225.43,32.0]
[1759849229835,0.2,225.51,225.44,4.43577004]
[1759849230130,0.2,225.51,225.44,15.52519516]
[1759849230940,0.2,225.51,225.47,20.8]
[1759849231228,0.2,225.51,225.48,31.98]
[1759849231606,0.2,225.51,225.5,20.8]
[1759849231806,0.2,225.51,225.5,25.2345898]
[1759849233022,0.2,225.51,225.5,36.11106501]
[1759849233631,1e-08,225.51,225.5,36.11106501]
[1759849234826,1e-08,225.51,225.5,57.1945898]
[1759849235317,1e-08,225.51,225.5,25.2345898]
[1759849235720,1e-08,225.51,225.5,36.3945898]
[1759849238438,1e-08,225.51,225.5,47.27106501]
[1759849240030,1e-08,225.51,225.5,15.31106501]
[1759849240330,1e-08,225.51,225.5,47.25106501]
[1759849240653,1e-08,225.51,225.5,36.3745898]
[1759849240854,1e-08,225.51,225.5,47.25106501]
[1759849241354,1e-08,225.51,225.5,125.25106501]
[1759849241521,0.2,225.59,225.58,20.8]
[1759849241727,0.2,225.59,225.58,63.61647521]
[1759849242023,0.2,225.59,225.58,20.8]
[1759849242248,0.2,225.59,225.58,57.17301711]
[1759849242834,0.2,225.59,225.58,68.04949232]
[1759849243197,1e-08,225.59,225.58,123.66163739]
[1759849243532,5.33511025,225.74,225.62,31.67647521]
[1759849243533,0.71,225.73,225.62,31.67647521]
[1759849243855,0.71,225.72,225.66,20.8]
[1759849244032,0.71,225.71,225.67,31.96]
[1759849244228,0.71,225.7,225.68,4.43105281]
[1759849244434,0.71,225.7,225.69,31.96]
[1759849245832,0.91,225.74,225.69,31.96]
[1759849246047,0.71,225.73,225.69,31.96]
[1759849246245,0.71,225.72,225.69,36.39075748]
[1759849246449,0.2,225.74,225.69,36.39075748]
[1759849246647,5.13511025,225.72,225.63,34.56]
[1759849246841,0.71,225.71,225.64,31.92]
[1759849248251,9.56596673,225.69,225.63,34.56]
[1759849248459,5.84511025,225.68,225.64,31.92]
[1759849248661,0.71,225.67,225.57,10.87647521]
[1759849248856,5.84511025,225.66,225.58,66.46]
[1759849249073,0.71,225.65,225.59,31.92]
[1759849249259,0.71,225.65,225.6,31.92]
[1759849249466,0.71,225.68,225.61,31.94]
[1759849250065,0.71,225.7,225.61,31.94]
[1759849250363,5.84511025,225.7,225.62,4.43223118]
[1759849250695,5.14067397,225.7,225.62,4.43223118]
[1759849250868,5.14067397,225.7,225.61,36.3724012]
[1759849251064,5.84511025,225.7,225.61,36.3724012]
[1759849251573,5.84511025,225.7,225.61,47.4534703]
[1759849252180,0.71,225.7,225.61,47.4534703]
[1759849252955,5.84511025,225.7,225.61,47.4534703]
[1759849253257,0.71,225.7,225.61,47.4534703]
[1759849253873,9.56579414,225.7,225.61,4.4324012]
[1759849254077,9.56579414,225.7,225.62,31.94]
[1759849254078,0.71,225.69,225.62,31.94]
[1759849254262,0.71,225.69,225.59,15.5148721]
[1759849254466,5.13511025,225.68,225.6,31.92]
[1759849254669,0.71,225.69,225.6,31.92]
[1759849254863,0.71,225.72,225.61,10.87647521]
[1759849255069,0.71,225.72,225.63,20.8]
[1759849255270,0.71,225.72,225.64,31.92]
[1759849255566,0.2,225.74,225.68,20.8]
[1759849255780,0.2,225.74,225.7,4.43066016]
[1759849257086,0.2,225.74,225.73,20.8]
[1759849257279,0.2,225.74,225.73,52.74]
[1759849257465,0.2,225.74,225.73,63.61647521]
[1759849257875,0.2,225.82,225.74,10.87647521]
[1759849258086,0.2,225.82,225.77,20.8]
[1759849258292,0.2,225.82,225.78,31.96]
[1759849258469,0.2,225.82,225.79,34.54]
[1759849260974,0.91,225.82,225.8,31.98]
[1759849261160,0.71,225.81,225.8,31.98]
[1759849261366,0.2,225.82,225.8,31.98]
[1759849261887,0.2,225.82,225.81,4.42850183]
[1759849262094,0.71,225.81,225.8,31.98]
[1759849262592,0.2,225.82,225.8,36.4086923]
[1759849262782,0.71,225.81,225.8,31.98]
[1759849262985,0.2,225.82,225.8,31.98]
[1759849263195,0.91,225.82,225.8,31.98]
[1759849263700,0.2,225.82,225.8,31.98]
[1759849264201,0.91,225.82,225.8,31.98]
[1759849264614,0.71,225.81,225.79,34.54]
[1759849264910,0.71,225.8,225.79,34.54]
[1759849265087,0.71,225.8,225.79,66.48]
[1759849265506,5.84511025,225.8,225.79,66.48]
[1759849265890,10.27380821,225.8,225.79,66.48]
[1759849266098,10.27380821,225.8,225.79,34.54]
[1759849266301,10.27380821,225.8,225.68,10.87647521]
[1759849266302,21.34555311,225.8,225.68,11.07742362]
[1759849266610,5.13511025,225.78,225.69,47.44799769]
[1759849267502,5.13511025,225.78,225.69,60.92396737]
[1759849267702,5.13511025,225.78,225.7,34.52]
[1759849267920,4.4287124,225.8,225.7,34.52]
[1759849267921,0.71,225.77,225.71,31.92]
[1759849268109,5.13511025,225.79,225.71,47.42648539]
[1759849268311,5.13511025,225.79,225.71,36.35032572]
[1759849268486,5.13511025,225.77,225.7,34.52]
[1759849268800,0.71,225.76,225.7,34.52]
[1759849269007,5.13511025,225.72,225.71,31.92]
[1759849269209,5.84511025,225.72,225.71,31.92]
[1759849269792,5.84511025,225.72,225.7,34.52]
[1759849270019,20.8,225.75,225.71,31.92]
[1759849270224,5.13511025,225.72,225.71,31.92]
[1759849270528,5.84511025,225.72,225.71,34.52]
[1759849270689,20.8,225.69,225.46,4.43537656]
[1759849270889,5.13511025,225.62,225.49,10.87647521]
[1759849271286,5.13511025,225.62,225.56,20.8]
[1759849271509,5.84511025,225.62,225.48,10.87647521]
[1759849271789,5.84511025,225.62,225.49,31.94]
[1759849271790,5.13511025,225.6,225.49,31.94]
[1759849271984,5.13511025,225.57,225.47,10.87647521]
[1759849272185,5.13511025,225.57,225.49,10.87647521]
[1759849272503,5.13511025,225.54,225.47,4.43514272]
[1759849272820,5.13511025,225.53,225.5,31.94]
[1759849273123,5.84511025,225.53,225.49,20.8]
[1759849273288,5.84511025,225.53,225.51,31.94]
[1759849273486,5.13511025,225.53,225.51,31.94]
[1759849273686,0.71,225.52,225.51,31.94]
[1759849273888,5.13511025,225.53,225.51,31.94]
[1759849274090,5.84511025,225.52,225.51,31.94]
[1759849275095,4.43439315,225.51,225.39,4.53668498]
[1759849275294,5.13511025,225.47,225.4,30.34]
[1759849275494,5.13511025,225.47,225.43,20.8]
[1759849275807,0.71,225.54,225.44,31.94]
[1759849275990,5.13511025,225.52,225.44,31.94]
[1759849276302,5.13511025,225.5,225.44,36.37573788]
[1759849276489,0.71,225.51,225.44,36.37573788]
[1759849276490,5.13511025,225.49,225.44,36.37573788]
[1759849276689,5.13511025,225.5,225.44,36.37573788]
[1759849276910,5.84511025,225.49,225.44,31.94]
[1759849277111,0.71,225.48,225.44,31.94]
[1759849277692,0.71,225.52,225.45,34.54]
[1759849277884,5.13511025,225.53,225.45,34.54]
[1759849278087,0.71,225.56,225.46,4.43537656]
[1759849278287,5.84511025,225.56,225.46,15.52381796]
[1759849278500,0.71,225.56,225.46,15.52381796]
[1759849278909,5.13511025,225.58,225.49,20.8]
[1759849279096,5.84511025,225.59,225.5,31.94]
[1759849279600,5.84511025,225.58,225.5,31.94]
[1759849279910,5.13511025,225.56,225.5,31.94]
[1759849280289,5.13511025,225.56,225.51,4.43439315]
[1759849280609,5.13511025,225.6,225.51,15.52037603]
[1759849280812,5.13511025,225.55,225.45,56.50538164]